[Event "AUT Bundesliga 2021-22"]
[Site "Graz"]
[Date "2022.03.26"]
[Round "8.17"]
[White "Halvax, Georg"]
[Black "Neyman, Igor"]
[Result "1-0"]
[ECO "E15"]
[WhiteElo "2405"]
[BlackElo "2325"]
[Annotator "ChessBase"]
[PlyCount "69"]
[EventDate "2021.01.17"]
[EventType "team-tourn"]
[EventCountry "AUT"]
[SourceTitle "playchess.com"]
[Source "ChessBase"]
[SourceQuality "1"]
[TimeControl "40/5400+30:1800+30"]

1. d4 {[%emt 0:00:05]} Nf6 {[%emt 0:00:27]} 2. c4 {[%emt 0:00:13]} e6 {[%emt 0:00:32]} 3. Nf3 {[%emt 0:00:18]} b6 {[%emt 0:01:16]} 4. g3 {[%emt 0:05:04]} Ba6 {[%emt 0:03:27]} 5. Qc2 {[%emt 0:00:11]} b5 {[%emt 0:02:25]} 6. cxb5 {[%emt 0:04:04]} Bxb5 {[%emt 0:00:17]} 7. Nc3 {[%emt 0:00:26]} Bc6 {[%emt 0:05:19]} 8. Bg2 {[%emt 0:04:02]} Bb4 {[%emt 0:02:26]} 9. Bg5 {[%emt 0:03:34]} Qc8 {[%emt 0:05:46]} 10. Bxf6 {[%emt 0:01:16]} gxf6 {[%emt 0:00:16]} 11. O-O {[%emt 0:00:14]} Bxc3 {[%emt 0:08:54]} 12. bxc3 {[%emt 0:01:15]} d5 {[%emt 0:05:58]} 13. Nd2 {[%emt 0:02:24]} Qa6 {[%emt 0:05:10]} 14. e4 {[%emt 0:02:52]} dxe4 {[%emt 0:04:21]} 15. Nxe4 {[%emt 0:00:49]} Nd7 {[%emt 0:02:20]} 16. c4 {[%emt 0:02:37]} Bxe4 {[%emt 0:11:07]} 17. Qxe4 {[%emt 0:12:02]} Rb8 {[%emt 0:04:29]} 18. d5 {[%emt 0:01:19]} O-O {[%emt 0:02:00]} 19. Rfe1 {[%emt 0:06:48]} Rfe8 {[%emt 0:04:49]} 20. Bh3 {[%emt 0:04:17]} Nf8 {[%emt 0:02:45]} 21. dxe6 {[%emt 0:02:14]} fxe6 {[%emt 0:01:45]} 22. Qh4 {[%emt 0:03:18]} Kg7 {[%emt 0:01:28]} 23. Qg4+ {[%emt 0:06:09]} Kf7 {[%emt 0:03:00]} 24. Qh5+ {[%emt 0:00:53]} Kg7 {[%emt 0:00:40]} 25. Rad1 {[%emt 0:08:20]} Rbd8 {[%emt 0:02:50]} 26. Rd4 {[%emt 0:11:57]} Rxd4 {[%emt 0:11:07]} 27. Qxe8 {[%emt 0:00:08]} e5 {[%emt 0:00:52]} 28. Qe7+ {[%emt 0:01:28]} Kg8 {[%emt 0:00:19]} 29. Qxc7 {[%emt 0:05:56]} Rxc4 {[%emt 0:01:06]} 30. Qe7 {[%emt 0:01:15]} Qb6 {[%emt 0:01:48]} 31. Bf5 {[%emt 0:02:50]} Rd4 {[%emt 0:02:24]} 32. Bc2 {[%emt 0:00:42]} Rd8 {[%emt 0:01:52]} 33. Rxe5 {[%emt 0:06:18]} Qd6 {[%emt 0:01:25]} 34. Bb3+ {[%emt 0:00:33]} Kh8 {[%emt 0:00:25]} 35. Qf7 {[%emt 0:00:26]} 1-0

[Event "AUT Bundesliga 2021-22"]
[Site "Graz"]
[Date "2022.03.26"]
[Round "8.21"]
[White "Schreiner, Peter"]
[Black "Mira, Helene"]
[Result "1-0"]
[ECO "D30"]
[WhiteElo "2435"]
[BlackElo "2090"]
[Annotator "ChessBase"]
[PlyCount "65"]
[EventDate "2021.01.17"]
[EventType "team-tourn"]
[EventCountry "AUT"]
[SourceTitle "playchess.com"]
[Source "ChessBase"]
[SourceQuality "1"]
[TimeControl "40/5400+30:1800+30"]

1. d4 {[%emt 0:00:06]} d5 {[%emt 0:00:15]} 2. c4 {[%emt 0:00:14]} e6 {[%emt 0:00:20]} 3. Nf3 {[%emt 0:00:43]} Nf6 {[%emt 0:00:46]} 4. g3 {[%emt 0:00:15]} c5 {[%emt 0:01:21]} 5. cxd5 {[%emt 0:01:35]} exd5 {[%emt 0:00:11]} 6. Bg2 {[%emt 0:00:15]} Nc6 {[%emt 0:00:54]} 7. O-O {[%emt 0:00:41]} Ne4 {[%emt 0:05:50]} 8. Nc3 {[%emt 0:12:48]} c4 {[%emt 0:13:32]} 9. Bf4 {[%emt 0:25:19]} a6 {[%emt 0:10:52]} 10. Nxe4 {[%emt 0:10:39]} dxe4 {[%emt 0:00:16]} 11. Ne5 {[%emt 0:01:25]} Nxe5 {[%emt 0:04:51]} 12. dxe5 {[%emt 0:03:36]} Bf5 {[%emt 0:03:12]} 13. Qc2 {[%emt 0:03:38]} Qd5 {[%emt 0:00:11]} 14. Rfd1 {[%emt 0:01:26]} Qc6 {[%emt 0:00:11]} 15. Rd4 {[%emt 0:01:22]} b5 {[%emt 0:00:12]} 16. Bxe4 {[%emt 0:03:42]} Bxe4 {[%emt 0:00:08]} 17. Rxe4 {[%emt 0:00:07]} Bc5 {[%emt 0:03:10]} 18. Be3 {[%emt 0:02:24]} Bxe3 {[%emt 0:00:23]} 19. Rxe3 {[%emt 0:00:07]} O-O {[%emt 0:00:08]} 20. b3 {[%emt 0:02:18]} Rac8 {[%emt 0:00:19]} 21. bxc4 {[%emt 0:01:32]} Qxc4 {[%emt 0:00:20]} 22. Qf5 {[%emt 0:04:57]} Rc6 {[%emt 0:01:06]} 23. a3 {[%emt 0:03:50]} Rfc8 {[%emt 0:06:25]} 24. Rd1 {[%emt 0:03:15]} g6 {[%emt 0:00:09]} 25. Qg5 {[%emt 0:03:45]} Qe6 {[%emt 0:01:41]} 26. Red3 {[%emt 0:06:02]} Kg7 {[%emt 0:05:56]} 27. Rd6 {[%emt 0:01:02]} Rxd6 {[%emt 0:01:24]} 28. Rxd6 {[%emt 0:00:40]} Qc4 {[%emt 0:01:47]} 29. Qf6+ {[%emt 0:01:45]} Kh6 {[%emt 0:04:39]} 30. e6 {[%emt 0:02:04]} fxe6 {[%emt 0:03:46]} 31. Rd4 {[%emt 0:00:59]} Qc1+ {[%emt 0:01:16]} 32. Kg2 {[%emt 0:00:06]} Rc4 {[%emt 0:04:45]} 33. Qh4+ 1-0

[Event "AUT Bundesliga 2021-22"]
[Site "Graz"]
[Date "2022.03.26"]
[Round "8.24"]
[White "Amann, Harald"]
[Black "Janzelj, Tim"]
[Result "0-1"]
[ECO "A41"]
[WhiteElo "1913"]
[BlackElo "2463"]
[Annotator "ChessBase"]
[PlyCount "55"]
[EventDate "2021.01.17"]
[EventType "team-tourn"]
[EventCountry "AUT"]
[SourceTitle "playchess.com"]
[Source "ChessBase"]
[SourceQuality "1"]
[TimeControl "40/5400+30:1800+30"]

1. d4 {[%emt 0:00:06]} d6 {[%emt 0:00:49]} 2. c4 {[%emt 0:00:16]} f5 {[%emt 0:01:29]} 3. Nc3 {[%emt 0:06:20]} Nf6 {[%emt 0:00:42]} 4. e4 {[%emt 0:05:23]} fxe4 {[%emt 0:02:38]} 5. f3 {[%emt 0:05:27]} g6 {[%emt 0:12:56]} 6. fxe4 {[%emt 0:02:10]} Bg7 {[%emt 0:00:07]} 7. Be2 {[%emt 0:01:28]} O-O {[%emt 0:01:08]} 8. Nf3 {[%emt 0:02:04]} e5 {[%emt 0:04:55]} 9. d5 {[%emt 0:17:43]} c6 {[%emt 0:01:07]} 10. Bd2 {[%emt 0:14:46]} Na6 {[%emt 0:08:27]} 11. Qc2 {[%emt 0:12:30]} Bd7 {[%emt 0:08:36]} 12. Bd3 {[%emt 0:18:16]} Ng4 {[%emt 0:01:32]} 13. Rf1 {[%emt 0:02:18]} Nxh2 {[%emt 0:00:29]} 14. O-O-O {[%emt 0:00:32]} Nxf1 {[%emt 0:00:19]} 15. Bxf1 {[%emt 0:00:19]} Qb6 {[%emt 0:04:13]} 16. Kb1 {[%emt 0:06:05]} Bg4 {[%emt 0:02:35]} 17. Bc1 {[%emt 0:02:00]} Nb4 {[%emt 0:00:36]} 18. Qd2 {[%emt 0:00:40]} Rad8 {[%emt 0:01:12]} 19. a3 {[%emt 0:00:27]} Na6 {[%emt 0:00:18]} 20. Ka2 {[%emt 0:00:11]} Bxf3 {[%emt 0:01:51]} 21. gxf3 {[%emt 0:00:12]} Rxf3 {[%emt 0:00:04]} 22. Be2 {[%emt 0:01:08]} Rf2 {[%emt 0:00:21]} 23. Qd3 {[%emt 0:00:01]} Nc5 {[%emt 0:04:29]} 24. Qc2 {[%emt 0:00:37]} a5 {[%emt 0:00:03]} 25. Be3 {[%emt 0:00:54]} Rh2 {[%emt 0:00:02]} 26. Rf1 {[%emt 0:00:23]} Rf8 {[%emt 0:00:20]} 27. Rxf8+ {[%emt 0:00:42]} Bxf8 {[%emt 0:00:02]} 28. Qd1 {[%emt 0:00:00]} 0-1

[Event "AUT Bundesliga 2021-22"]
[Site "Graz"]
[Date "2022.03.26"]
[Round "8.27"]
[White "Leisch, Lukas"]
[Black "Froewis, Georg"]
[Result "1/2-1/2"]
[ECO "A13"]
[WhiteElo "2403"]
[BlackElo "2449"]
[Annotator "ChessBase"]
[PlyCount "80"]
[EventDate "2021.01.17"]
[EventType "team-tourn"]
[EventCountry "AUT"]
[SourceTitle "playchess.com"]
[Source "ChessBase"]
[SourceQuality "1"]
[TimeControl "40/5400+30:1800+30"]

1. c4 {[%emt 0:00:03]} e6 {[%emt 0:00:11]} 2. g3 {[%emt 0:00:06]} d5 {[%emt 0:00:43]} 3. Bg2 {[%emt 0:00:07]} Nf6 {[%emt 0:00:33]} 4. d4 {[%emt 0:00:07]} c6 {[%emt 0:00:19]} 5. Nf3 {[%emt 0:00:20]} dxc4 {[%emt 0:00:39]} 6. O-O {[%emt 0:00:17]} b5 {[%emt 0:01:41]} 7. Ne5 {[%emt 0:03:54]} Bb7 {[%emt 0:00:19]} 8. a4 {[%emt 0:00:10]} a6 {[%emt 0:08:28]} 9. axb5 {[%emt 0:10:06]} axb5 {[%emt 0:00:05]} 10. Rxa8 {[%emt 0:00:07]} Bxa8 {[%emt 0:00:02]} 11. Nc3 {[%emt 0:00:39]} Nd5 {[%emt 0:12:59]} 12. e4 {[%emt 0:09:24]} Nf6 {[%emt 0:08:24]} 13. f4 {[%emt 0:22:18]} Be7 {[%emt 0:02:50]} 14. g4 {[%emt 0:07:15]} Nfd7 {[%emt 0:06:07]} 15. Nxd7 {[%emt 0:05:22]} Nxd7 {[%emt 0:00:06]} 16. e5 {[%emt 0:00:55]} b4 {[%emt 0:09:42]} 17. Ne4 {[%emt 0:00:28]} c5 {[%emt 0:00:59]} 18. Be3 {[%emt 0:05:47]} O-O {[%emt 0:11:53]} 19. Nxc5 {[%emt 0:02:07]} Bxg2 {[%emt 0:02:38]} 20. Kxg2 {[%emt 0:02:12]} Qa8+ {[%emt 0:01:34]} 21. Qf3 {[%emt 0:00:45]} Nb6 {[%emt 0:00:58]} 22. Ne4 {[%emt 0:08:44]} f6 {[%emt 0:06:34]} 23. f5 {[%emt 0:02:09]} Nd5 {[%emt 0:06:55]} 24. Kh3 {[%emt 0:07:29]} c3 {[%emt 0:09:01]} 25. bxc3 {[%emt 0:00:16]} bxc3 {[%emt 0:01:34]} 26. exf6 {[%emt 0:00:54]} Bxf6 {[%emt 0:00:42]} 27. g5 {[%emt 0:03:53]} exf5 {[%emt 0:03:04]} 28. Nxc3 {[%emt 0:03:15]} Nxc3 {[%emt 0:01:11]} 29. gxf6 {[%emt 0:02:00]} Ne4 {[%emt 0:01:26]} 30. fxg7 {[%emt 0:00:21]} Rf7 {[%emt 0:00:31]} 31. Qf4 {[%emt 0:01:00]} Rxg7 {[%emt 0:01:04]} 32. Rg1 {[%emt 0:02:25]} Rxg1 {[%emt 0:00:46]} 33. Bxg1 {[%emt 0:00:02]} Qd5 {[%emt 0:00:23]} 34. Be3 {[%emt 0:01:30]} Nf6 {[%emt 0:00:34]} 35. Qe5 {[%emt 0:00:16]} Kf7 {[%emt 0:00:52]} 36. Qxd5+ {[%emt 0:00:26]} Nxd5 {[%emt 0:00:02]} 37. Bc1 {[%emt 0:00:22]} Kg6 {[%emt 0:00:20]} 38. Kg3 {[%emt 0:00:19]} Kf6 {[%emt 0:00:18]} 39. Kf3 {[%emt 0:00:33]} Ke6 {[%emt 0:00:27]} 40. Bf4 {[%emt 0:00:00]} Kf7 {[%emt 0:00:00]} 1/2-1/2

[Event "AUT Bundesliga 2021-22"]
[Site "Graz"]
[Date "2022.03.26"]
[Round "8.28"]
[White "Peyrer, Konstantin"]
[Black "Singer, Christoph"]
[Result "1/2-1/2"]
[ECO "A13"]
[WhiteElo "2301"]
[BlackElo "2345"]
[Annotator "ChessBase"]
[PlyCount "117"]
[EventDate "2021.01.17"]
[EventType "team-tourn"]
[EventCountry "AUT"]
[SourceTitle "playchess.com"]
[Source "ChessBase"]
[SourceQuality "1"]
[TimeControl "40/5400+30:1800+30"]

1. c4 {[%emt 0:00:14]} e6 {[%emt 0:00:08]} 2. Nf3 {[%emt 0:00:05]} d5 {[%emt 0:00:07]} 3. g3 {[%emt 0:00:11]} Nf6 {[%emt 0:00:12]} 4. Bg2 {[%emt 0:00:06]} dxc4 {[%emt 0:00:26]} 5. Qa4+ {[%emt 0:00:06]} c6 {[%emt 0:00:11]} 6. Qxc4 {[%emt 0:00:05]} b5 {[%emt 0:00:05]} 7. Qb3 {[%emt 0:00:22]} Bb7 {[%emt 0:00:59]} 8. d4 {[%emt 0:00:10]} a6 {[%emt 0:02:05]} 9. O-O {[%emt 0:04:50]} c5 {[%emt 0:04:10]} 10. dxc5 {[%emt 0:00:40]} Nbd7 {[%emt 0:00:37]} 11. Be3 {[%emt 0:03:06]} Nxc5 {[%emt 0:03:41]} 12. Qd1 {[%emt 0:00:18]} Be7 {[%emt 0:04:03]} 13. Qxd8+ {[%emt 0:08:41]} Rxd8 {[%emt 0:00:28]} 14. Rc1 {[%emt 0:00:04]} O-O {[%emt 0:25:47]} 15. Ne5 {[%emt 0:00:23]} Bxg2 {[%emt 0:12:49]} 16. Kxg2 {[%emt 0:00:06]} Rc8 {[%emt 0:00:16]} 17. Nd2 {[%emt 0:00:25]} Rfe8 {[%emt 0:12:00]} 18. Nb3 {[%emt 0:03:16]} Nxb3 {[%emt 0:06:25]} 19. axb3 {[%emt 0:00:04]} Rxc1 {[%emt 0:00:20]} 20. Rxc1 {[%emt 0:00:14]} Nd5 {[%emt 0:01:23]} 21. Bd2 {[%emt 0:02:01]} Bb4 {[%emt 0:05:20]} 22. Bxb4 {[%emt 0:02:25]} Nxb4 {[%emt 0:00:02]} 23. Rc7 {[%emt 0:00:22]} f6 {[%emt 0:05:42]} 24. Nc6 {[%emt 0:00:37]} Nxc6 {[%emt 0:00:12]} 25. Rxc6 {[%emt 0:00:05]} a5 {[%emt 0:08:39]} 26. Ra6 {[%emt 0:01:11]} Rc8 {[%emt 0:02:45]} 27. Rxa5 {[%emt 0:00:51]} Rc2 {[%emt 0:01:09]} 28. e3 {[%emt 0:00:19]} Rxb2 {[%emt 0:01:53]} 29. Rxb5 {[%emt 0:00:05]} Kf7 {[%emt 0:00:17]} 30. h4 {[%emt 0:00:47]} h5 {[%emt 0:00:17]} 31. Kf3 {[%emt 0:02:48]} e5 {[%emt 0:00:18]} 32. Rb8 {[%emt 0:01:03]} f5 {[%emt 0:00:57]} 33. b4 {[%emt 0:00:51]} e4+ {[%emt 0:00:32]} 34. Kg2 {[%emt 0:00:07]} Rb1 {[%emt 0:00:28]} 35. b5 {[%emt 0:00:58]} g6 {[%emt 0:00:45]} 36. b6 {[%emt 0:00:58]} Kg7 {[%emt 0:00:08]} 37. b7 {[%emt 0:00:37]} Kh7 {[%emt 0:00:05]} 38. f4 {[%emt 0:06:04]} Rb2+ {[%emt 0:00:09]} 39. Kf1 {[%emt 0:00:05]} Kg7 {[%emt 0:00:03]} 40. Ke1 {[%emt 0:00:00]} Kh7 {[%emt 0:00:00]} 41. Kd1 {[%emt 0:00:12]} Kg7 {[%emt 0:00:13]} 42. Kc1 {[%emt 0:00:08]} Rb6 {[%emt 0:00:15]} 43. Kc2 {[%emt 0:00:04]} Rc6+ {[%emt 0:01:59]} 44. Kb3 {[%emt 0:00:43]} Rb6+ {[%emt 0:02:57]} 45. Kc4 {[%emt 0:01:08]} Rb1 {[%emt 0:00:32]} 46. Kc5 {[%emt 0:00:24]} Rc1+ {[%emt 0:01:39]} 47. Kd6 {[%emt 0:00:06]} Rd1+ {[%emt 0:01:29]} 48. Ke7 {[%emt 0:02:30]} Rb1 {[%emt 0:00:31]} 49. Ke8 {[%emt 0:00:56]} Rb2 {[%emt 0:01:03]} 50. Kd8 {[%emt 0:00:48]} Rd2+ {[%emt 0:01:34]} 51. Kc7 {[%emt 0:01:27]} Rc2+ {[%emt 0:00:07]} 52. Kd6 {[%emt 0:00:04]} Rd2+ {[%emt 0:00:14]} 53. Ke6 {[%emt 0:00:25]} Rb2 {[%emt 0:00:19]} 54. Rd8 {[%emt 0:00:10]} Rxb7 {[%emt 0:01:47]} 55. Rd7+ {[%emt 0:00:05]} Rxd7 {[%emt 0:00:06]} 56. Kxd7 {[%emt 0:00:04]} Kf7 {[%emt 0:00:08]} 57. Kd6 {[%emt 0:00:04]} Kf6 {[%emt 0:00:09]} 58. Kd5 {[%emt 0:00:05]} Kf7 {[%emt 0:00:58]} 59. Kd6 {[%emt 0:00:03]} 1/2-1/2

[Event "AUT Bundesliga 2021-22"]
[Site "Graz"]
[Date "2022.03.26"]
[Round "8.29"]
[White "Webersberger, Johann"]
[Black "Steindl, Johannes"]
[Result "1/2-1/2"]
[ECO "C67"]
[WhiteElo "2321"]
[BlackElo "2237"]
[Annotator "ChessBase"]
[PlyCount "30"]
[EventDate "2021.01.17"]
[EventType "team-tourn"]
[EventCountry "AUT"]
[SourceTitle "playchess.com"]
[Source "ChessBase"]
[SourceQuality "1"]
[TimeControl "40/5400+30:1800+30"]

1. e4 {[%emt 0:00:02]} e5 {[%emt 0:00:04]} 2. Nf3 {[%emt 0:00:04]} Nc6 {[%emt 0:00:03]} 3. Bb5 {[%emt 0:00:14]} Nf6 {[%emt 0:00:13]} 4. O-O {[%emt 0:00:08]} Nxe4 {[%emt 0:00:05]} 5. d4 {[%emt 0:00:09]} Nd6 {[%emt 0:00:06]} 6. dxe5 {[%emt 0:00:19]} Nxb5 {[%emt 0:00:10]} 7. a4 {[%emt 0:00:05]} Nbd4 {[%emt 0:00:12]} 8. Nxd4 {[%emt 0:00:08]} Nxd4 {[%emt 0:00:08]} 9. Qxd4 {[%emt 0:00:08]} d5 {[%emt 0:00:08]} 10. exd6 {[%emt 0:00:25]} Qxd6 {[%emt 0:00:11]} 11. Qe3+ {[%emt 0:00:07]} Qe6 {[%emt 0:00:21]} 12. Qd4 {[%emt 0:00:12]} Qd6 {[%emt 0:00:11]} 13. Qe3+ {[%emt 0:00:08]} Qe6 {[%emt 0:00:06]} 14. Qd4 {[%emt 0:00:07]} Qd6 {[%emt 0:00:13]} 15. Qe4+ {[%emt 0:00:44]} Qe6 {[%emt 0:00:30]} 1/2-1/2

[Event "AUT Bundesliga 2021-22"]
[Site "Graz"]
[Date "2022.03.26"]
[Round "8.30"]
[White "Atzl, Florian"]
[Black "Schwabeneder, Alois"]
[Result "0-1"]
[ECO "B17"]
[WhiteElo "2206"]
[BlackElo "1884"]
[Annotator "ChessBase"]
[PlyCount "78"]
[EventDate "2021.01.17"]
[EventType "team-tourn"]
[EventCountry "AUT"]
[SourceTitle "playchess.com"]
[Source "ChessBase"]
[SourceQuality "1"]
[TimeControl "40/5400+30:1800+30"]

1. e4 {[%emt 0:00:03]} c6 {[%emt 0:00:20]} 2. d4 {[%emt 0:02:27]} d5 {[%emt 0:00:18]} 3. Nd2 {[%emt 0:00:10]} dxe4 {[%emt 0:00:53]} 4. Nxe4 {[%emt 0:00:08]} Nd7 {[%emt 0:02:23]} 5. Bd3 {[%emt 0:01:29]} Ngf6 {[%emt 0:00:47]} 6. c3 {[%emt 0:00:18]} Nxe4 {[%emt 0:00:45]} 7. Bxe4 {[%emt 0:00:06]} Nf6 {[%emt 0:00:07]} 8. Bc2 {[%emt 0:00:13]} Bg4 {[%emt 0:01:34]} 9. f3 {[%emt 0:05:52]} Bh5 {[%emt 0:00:23]} 10. Nh3 {[%emt 0:02:11]} Bg6 {[%emt 0:00:41]} 11. Bb3 {[%emt 0:03:38]} e6 {[%emt 0:04:42]} 12. O-O {[%emt 0:04:29]} Bd6 {[%emt 0:04:22]} 13. Kh1 {[%emt 0:09:32]} Qc7 {[%emt 0:05:05]} 14. Qe1 {[%emt 0:11:39]} Bd3 {[%emt 0:04:26]} 15. Rf2 {[%emt 0:06:05]} O-O-O {[%emt 0:10:20]} 16. Qg1 {[%emt 0:18:37]} h6 {[%emt 0:03:18]} 17. Bc2 {[%emt 0:01:26]} Bf5 {[%emt 0:05:18]} 18. Bxf5 {[%emt 0:08:13]} exf5 {[%emt 0:00:26]} 19. c4 {[%emt 0:00:22]} c5 {[%emt 0:02:18]} 20. b4 {[%emt 0:00:19]} cxd4 {[%emt 0:02:07]} 21. c5 {[%emt 0:01:07]} Be7 {[%emt 0:01:32]} 22. Bf4 {[%emt 0:02:08]} Qd7 {[%emt 0:00:41]} 23. Rd1 {[%emt 0:08:39]} Qe6 {[%emt 0:09:39]} 24. Qf1 {[%emt 0:01:54]} Nd5 {[%emt 0:05:44]} 25. Re2 {[%emt 0:04:19]} Qa6 {[%emt 0:07:16]} 26. Qe1 {[%emt 0:01:49]} Bf6 {[%emt 0:00:47]} 27. Red2 {[%emt 0:04:10]} Rhe8 {[%emt 0:02:32]} 28. Qf2 {[%emt 0:00:52]} g5 {[%emt 0:01:38]} 29. Bd6 {[%emt 0:00:18]} Re3 {[%emt 0:05:04]} 30. Ng1 {[%emt 0:01:35]} Rde8 {[%emt 0:01:12]} 31. Rb2 {[%emt 0:00:56]} Qc4 {[%emt 0:07:26]} 32. Qg3 {[%emt 0:00:37]} d3 {[%emt 0:01:34]} 33. Rb3 {[%emt 0:00:01]} Qc2 {[%emt 0:00:37]} 34. Rf1 {[%emt 0:01:04]} d2 {[%emt 0:01:36]} 35. Rbb1 {[%emt 0:00:34]} Nc3 36. Ra1 d1=Q {[%emt 0:02:09]} 37. Raxd1 {[%emt 0:00:21]} Nxd1 {[%emt 0:00:19]} 38. h4 {[%emt 0:01:11]} Qd3 {[%emt 0:01:13]} 39. Qh3 {[%emt 0:00:30]} g4 {[%emt 0:00:42]} 0-1

[Event "AUT Bundesliga 2021-22"]
[Site "Graz"]
[Date "2022.04.21"]
[Round "9.1"]
[White "Bluebaum, Matthias"]
[Black "Rozentalis, Eduardas"]
[Result "1-0"]
[ECO "E49"]
[WhiteElo "2642"]
[BlackElo "2542"]
[Annotator "TA"]
[PlyCount "97"]
[EventDate "2021.01.17"]
[EventType "team-tourn"]
[EventCountry "AUT"]
[SourceTitle "playchess.com"]
[Source "ChessBase"]
[SourceQuality "1"]
[TimeControl "40/5400+30:1800+30"]

{[%evp 13,97,10,23,10,22,28,28,11,17,14,14,9,9,10,10,12,12,13,11,12,10,15,15,21,0,8,45,53,44,53,91,95,92,89,90,112,92,92,106,95,107,89,91,95,100,97,122,106,124,124,130,123,125,128,120,118,176,178,175,147,181,191,181,175,300,317,288,300,301,360,550,328,737,698,1278,1278,739,1139,468,229,29975,29976,29976,29976,29975,29976]} 1. d4 {[%emt 0:00:03]} Nf6 {[%emt 0:00:10]} 2. c4 {[%emt 0:00:06]} e6 {[%emt 0:00:05]} 3. Nc3 {[%emt 0:00:10]} Bb4 {[%emt 0:00:12]} 4. e3 {[%emt 0:00:15]} O-O {[%emt 0:00:33]} 5. Bd3 {[%emt 0:00:33]} d5 {[%emt 0:01:06]} 6. a3 {[%emt 0:00:55]} Bxc3+ {[%emt 0:01:08]} 7. bxc3 {[%emt 0:00:04]} c6 {[%emt 0:00:20][%cal Oe6e5]} 8. Ne2 {[%emt 0:01:58] 8.Nf3 is vanishing. E49: Nimzo-Indian: Rubinstein: 5 Bd3 d5 6 a3 Bxc3+ 7 bxc3.} b6 {[%emt 0:00:13]} 9. cxd5 {[%emt 0:01:31]} cxd5 {[%emt 0:00:12]} 10. c4 {[%emt 0:00:31] White has an edge.} Ba6 {[%emt 0:02:03]} 11. cxd5 $1 {[%emt 0:00:19]} Qxd5 {[%emt 0:01:14]} 12. f3 {[%emt 0:05:16]} Bxd3 {[%emt 0:08:18]} 13. Qxd3 {[%emt 0:01:07]} Rc8 {[%emt 0:00:08][%cal Bf8c8,Bc8c4,Bc4a4][%mdl 32] [#]} 14. e4 $146 {[%emt 0:05:10]} ({Predecessor:} 14. Bb2 Nbd7 15. e4 Ne5 16. Qd1 Qa5+ 17. Kf2 Nc4 18. Bc3 Qg5 19. Qd3 Nd7 20. a4 {½-½ (27) Peralta,F (2556)-Satyapragyan,S (2392) Barcelona 2015}) 14... Qc4 {[%emt 0:00:22]} 15. Qxc4 {[%emt 0:06:39]} Rxc4 {[%emt 0:00:16]} 16. Be3 {[%emt 0:00:36]} Nc6 {[%emt 0:02:08]} 17. Kd2 {[%emt 0:04:40]} b5 {[%emt 0:17:01]} 18. Rac1 {[%emt 0:16:24] White wants to play Rxc4.} Na5 {[%emt 0:00:40] Hoping for ...Nb3+.} 19. Kd3 {[%emt 0:00:06]} Ra4 {[%emt 0:06:19]} 20. Nc3 {[%emt 0:06:38][%csl LRa4,LRb5]} Rxa3 {[%emt 0:02:20] Threatens to win with ...b4.} 21. Ra1 {[%emt 0:00:04]} Rb3 {[%emt 0:07:43][%cal Oa8c8]} 22. Rxa5 {[%emt 0:03:20]} b4 {[%emt 0:00:23][%mdl 64] [#] Pin} 23. Rc1 $1 {[%emt 0:05:12]} Rxc3+ {[%emt 0:08:03]} (23... Kf8 24. Bd2) 24. Rxc3 {[%emt 0:00:06]} bxc3 {[%emt 0:00:04]} 25. Kxc3 $16 {[%emt 0:01:46][%mdl 4096] Endgame KRB-KRN} Kf8 {[%emt 0:01:16]} 26. Ra6 {[%emt 0:04:51]} Ke7 {[%emt 0:11:13]} 27. Bf4 {[%emt 0:00:32]} Ne8 {[%emt 0:00:35]} 28. d5 {[%emt 0:05:32]} exd5 {[%emt 0:02:08]} 29. exd5 {[%emt 0:00:01]} Kd7 {[%emt 0:04:01]} 30. Kc4 {[%emt 0:01:36] &Bianco is much more active.} Nc7 {[%emt 0:02:45]} 31. Rd6+ {[%emt 0:03:12]} Ke7 {[%emt 0:01:35]} 32. Rc6 {[%emt 0:00:11]} Ne8 {[%emt 0:00:16] [#]} 33. Ra6 $1 {[%emt 0:00:33]} Kd7 {[%emt 0:00:26]} 34. g4 {[%emt 0:02:54]} Rc8+ {[%emt 0:04:03]} (34... Kc8 $16 {was necessary.} 35. g5 Kb7) 35. Kd4 $18 {[%emt 0:02:50]} Ra8 {[%emt 0:00:06]} 36. h4 {[%emt 0:03:36]} Nc7 {[%emt 0:00:29] [#]} 37. Rd6+ {[%emt 0:01:35]} Ke7 {[%emt 0:00:21] And now ...Nb5+ would win.} 38. Rc6 {[%emt 0:00:34]} Nb5+ {[%emt 0:00:13]} (38... Ne8 $142 39. Ra6 Kd7) 39. Kc5 {[%emt 0:03:22]} a6 {[%emt 0:00:46]} 40. g5 {[%emt 0:00:00] Inhibits h6.} Kd7 {[%emt 0:00:00]} 41. Be5 {[%emt 0:06:57]} g6 {[%emt 0:06:06]} (41... Rc8 $142 42. Kb6 (42. Bxg7 Na7 $18) 42... Rxc6+ 43. dxc6+ Kc8 44. Bxg7 Nd6) 42. Rf6 {[%emt 0:01:21]} Ke8 {[%emt 0:00:38]} (42... Ke7 43. Rb6 Ke8) 43. Kb4 {[%emt 0:03:37]} Rd8 {[%emt 0:07:13]} 44. Rxa6 {[%emt 0:02:11]} Rxd5 {[%emt 0:01:34]} 45. f4 {[%emt 0:00:05]} Nd4 {[%emt 0:01:08]} 46. Kc4 {[%emt 0:00:15][%csl LRd4,LRd5]} Nc2 $2 {[%emt 0:00:27]} (46... Rxe5 $18 47. fxe5 Nf5) 47. Kxd5 {[%emt 0:01:09] White mates.} Nb4+ {[%emt 0:00:04]} 48. Kc5 {[%emt 0:00:03]} Nxa6+ {[%emt 0:00:07]} 49. Kb5 {Weighted Error Value: White=0.01 (flawless) /Black=0.37} 1-0